bitfinex/quotes_SOLUSD_20241028
["timestamp","ask_amount","ask_price","bid_price","bid_amount"]
[1730139776928,70.0,175.63,175.6,31.13471665]
[1730139777448,70.0,175.61,175.58,11.20311665]
[1730139778130,70.0,175.61,175.57,15.00065673]
[1730139778438,70.0,175.61,175.58,11.20311665]
[1730139778648,70.0,175.61,175.57,26.20377338]
[1730139778829,5.6947,175.6,175.57,0.76155673]
[1730139779034,75.6945,175.61,175.57,11.96467338]
[1730139779347,86.89761665,175.61,175.55,31.14001665]
[1730139779641,86.89761665,175.61,175.56,11.20311665]
[1730139779851,93.776884,175.54,175.53,0.5831262]
[1730139780055,104.98000065,175.54,175.53,0.5831262]
[1730139780944,110.67670065,175.54,175.53,0.5831262]
[1730139782842,147.17164025,175.54,175.53,0.5831262]
[1730139783048,70.0,175.45,175.41,17.73273622]
[1730139783417,70.0,175.42,175.39,31.15761665]
[1730139783838,70.0,175.45,175.41,11.20311665]
[1730139784058,70.0,175.45,175.39,19.9545]
[1730139784340,70.0,175.43,175.4,11.20311665]
[1730139784647,70.0,175.43,175.41,11.20311665]
[1730139785141,70.0,175.43,175.4,16.90411665]
[1730139785349,70.0,175.45,175.41,11.20311665]
[1730139786641,93.26688391,175.45,175.38,27.6378]
[1730139786837,75.6997,175.45,175.4,17.56718391]
[1730139787830,93.26688391,175.45,175.4,23.26828391]
[1730139788435,23.26688391,175.45,175.4,23.26828391]
[1730139788642,70.0,175.44,175.4,23.26828391]
[1730139789349,70.0,175.42,175.38,53.27628391]
[1730139789544,70.0,175.42,175.38,19.9564]
[1730139789742,70.0,175.42,175.38,14.2547]
[1730139789946,75.7007,175.42,175.38,14.2547]
[1730139790332,70.0,175.4,175.35,14.8402262]
[1730139790529,87.56718391,175.38,175.35,0.5831262]
[1730139790833,70.0,175.38,175.35,0.5831262]
[1730139791027,70.0,175.36,175.35,0.5831262]
[1730139792050,99.479384,175.36,175.35,0.5831262]
[1730139792231,70.0,175.36,175.35,0.5831262]
[1730139794439,75.7025,175.36,175.35,0.5831262]
[1730139794640,70.0,175.36,175.35,0.5831262]
[1730139795548,70.0,175.38,175.35,18.15031011]
[1730139795738,70.0,175.36,175.35,18.15031011]
[1730139796561,70.0,175.36,175.35,0.5831262]
[1730139798636,99.479384,175.36,175.35,0.5831262]
[1730139798843,137.04656791,175.36,175.35,0.5831262]
[1730139799553,159.13096791,175.36,175.35,0.5831262]
[1730139799762,159.23096791,175.36,175.35,0.5831262]
[1730139802244,168.40571399,175.36,175.35,0.5831262]
[1730139802650,168.40571399,175.36,175.24,14.2659]
[1730139802651,70.0,175.26,175.24,31.83308391]
[1730139802841,70.0,175.24,175.21,23.27428391]
[1730139803045,70.0,175.24,175.21,5.7071]
[1730139804059,70.0,175.24,175.2,37.54358391]
[1730139804449,70.0,175.24,175.21,17.56718391]
[1730139804651,70.0,175.24,175.2,19.9764]
[1730139804945,70.0,175.22,175.2,37.54358391]
[1730139805743,70.0,175.22,175.2,14.2687]
[1730139806770,70.0,175.24,175.21,17.56718391]
[1730139806947,70.0,175.24,175.22,17.56718391]
[1730139807740,70.0,175.24,175.23,17.56718391]
[1730139807939,70.0,175.24,175.23,23.27388391]
[1730139808264,70.0,175.26,175.23,37.54078391]
[1730139809080,70.0,175.26,175.24,17.56718391]
[1730139809257,70.0,175.28,175.25,17.56718391]
[1730139809455,70.0,175.28,175.27,17.56718391]
[1730139810461,70.0,175.28,175.27,11.26101198]
[1730139812265,70.0,175.31,175.27,16.96641198]
[1730139812468,70.0,175.33,175.3,17.5878627]
[1730139812652,70.0,175.33,175.32,17.5878627]
[1730139813163,70.0,175.35,175.32,17.5878627]
[1730139813366,70.0,175.35,175.34,17.5878627]
[1730139814570,70.0,175.34,175.33,17.5878627]
[1730139815455,70.0,175.34,175.29,14.2614]
[1730139815656,70.0,175.34,175.33,17.5878627]
[1730139815868,70.0,175.31,175.29,17.5878627]
[1730139816170,70.0,175.28,175.23,15.12314772]
[1730139816367,70.0,175.28,175.24,17.5878627]
[1730139816548,70.0,175.28,175.25,17.5878627]
[1730139817652,70.0,175.28,175.26,17.5878627]
[1730139818060,70.0,175.28,175.27,17.5878627]
[1730139818585,70.0,175.28,175.26,17.5878627]
[1730139818876,70.0,175.23,175.22,15.8868]
[1730139819076,70.0,175.23,175.22,33.4746627]
[1730139819464,70.0,175.25,175.22,53.4492627]
[1730139819667,70.0,175.27,175.24,17.5878627]
[1730139819970,70.0,175.27,175.26,17.5878627]
[1730139820167,70.0,175.27,175.25,17.5878627]
[1730139821372,70.0,175.29,175.26,17.5878627]
[1730139821563,70.0,175.29,175.28,17.5878627]
[1730139822361,70.0,175.31,175.28,17.5878627]
[1730139822569,70.0,175.31,175.29,17.5878627]
[1730139822779,70.0,175.31,175.3,17.5878627]
[1730139823272,5.7035,175.33,175.3,17.5878627]
[1730139823273,70.0,175.33,175.3,17.5878627]
[1730139823481,70.0,175.33,175.24,19.9725]
[1730139823482,70.0,175.33,175.32,17.5878627]
[1730139824778,70.0,175.35,175.32,17.5878627]
[1730139825079,70.0,175.37,175.34,17.5878627]
[1730139825381,70.0,175.35,175.32,17.5878627]
[1730139826083,70.0,175.35,175.33,17.5878627]
[1730139826254,70.0,175.35,175.32,23.2916627]
[1730139826581,93.2907627,175.35,175.3,37.5530627]
[1730139827162,75.7029,175.35,175.3,37.5530627]
[1730139827668,25.25,175.34,175.3,37.5530627]
[1730139827870,25.25,175.34,175.31,17.5878627]
[1730139828587,75.7029,175.35,175.31,17.5878627]
[1730139831072,93.2907627,175.35,175.31,5.7041]
[1730139831474,25.25,175.33,175.3,23.2922627]
[1730139831671,95.25,175.33,175.3,23.2922627]
[1730139831862,17.5878627,175.32,175.27,23.2932627]
[1730139832051,17.5878627,175.3,175.26,30.58563571]
[1730139832259,70.0,175.29,175.26,36.29143571]
[1730139832561,70.0,175.27,175.24,17.5878627]
[1730139832965,70.0,175.27,175.24,23.2942627]
[1730139833165,70.0,175.27,175.23,37.5614627]
[1730139833393,70.0,175.25,175.23,14.2669]
[1730139833884,70.0,175.23,175.2,37.5646627]
[1730139835078,70.0,175.23,175.21,17.5878627]
[1730139835996,70.0,175.23,175.2,37.5646627]
[1730139836474,70.0,175.23,175.21,17.5878627]
[1730139837278,70.0,175.23,175.21,23.2951627]
[1730139838584,70.0,175.23,175.22,17.5878627]
[1730139838768,70.0,175.25,175.22,17.5878627]
[1730139839091,70.0,175.25,175.23,17.5878627]
[1730139839382,70.0,175.29,175.24,17.5878627]
[1730139839583,70.0,175.29,175.26,17.5878627]
[1730139839783,70.0,175.27,175.25,17.5878627]
[1730139839969,70.0,175.29,175.25,17.5878627]
[1730139840167,70.0,175.29,175.24,17.5878627]
[1730139840772,70.0,175.29,175.25,5.7061]
[1730139841272,70.0,175.29,175.25,23.2939627]
[1730139841685,70.0,175.25,175.22,5.707]
[1730139841990,70.0,175.27,175.24,17.5878627]
[1730139842388,70.0,175.27,175.23,17.5878627]
[1730139842703,70.0,175.25,175.22,14.2677]
[1730139842873,70.0,175.23,175.2,17.5878627]
[1730139843404,70.0,175.23,175.19,37.5660627]
[1730139843587,70.0,175.23,175.2,17.5878627]
[1730139843977,70.0,175.23,175.21,17.5878627]
[1730139844185,93.776884,175.19,175.18,0.5831262]
[1730139844497,111.3647467,175.19,175.18,0.5831262]
[1730139844679,117.0727467,175.19,175.18,0.5831262]
[1730139846875,70.0,175.11,175.05,14.2808]
[1730139847105,70.0,175.07,175.01,0.5831262]
[1730139847281,87.5878627,175.07,175.02,19.9973]
[1730139847478,70.0,175.07,175.02,37.5851627]
[1730139847687,87.5878627,175.07,175.02,19.9973]
[1730139848076,70.0,175.07,175.02,37.5851627]
[1730139851293,87.5878627,175.07,175.02,37.5851627]
[1730139851798,17.5878627,175.06,175.02,19.9973]
[1730139852173,70.0,175.05,175.02,19.9973]
[1730139853288,87.5878627,175.05,175.02,19.9973]
[1730139853792,70.0,175.05,175.02,37.5851627]
[1730139853975,28.28442443,175.25,175.02,37.5851627]
[1730139853976,70.0,175.07,175.04,17.5878627]
[1730139854175,70.0,175.07,175.03,17.5878627]
[1730139855095,70.0,175.1,175.05,17.5878627]
[1730139855297,70.0,175.1,175.06,17.5878627]
[1730139856385,70.0,175.1,175.07,5.712]
[1730139856583,87.5878627,175.1,175.07,5.712]
[1730139856793,70.0,175.1,175.07,5.712]
[1730139856974,70.0,175.08,175.06,14.2806]
[1730139859604,70.0,175.1,175.06,14.2806]
[1730139859800,70.0,175.1,175.06,31.8684627]
[1730139860495,70.0,175.1,175.06,37.5807627]
[1730139860701,70.0,175.12,175.09,17.5878627]
[1730139860913,70.0,175.16,175.11,17.5878627]
[1730139861202,70.0,175.18,175.14,17.5878627]
[1730139861377,70.0,175.18,175.15,17.5878627]
[1730139861587,70.0,175.18,175.16,17.5878627]
[1730139861777,70.0,175.18,175.15,17.5878627]
[1730139862186,70.0,175.18,175.14,17.5878627]
[1730139862379,70.0,175.15,175.12,17.5878627]
[1730139862792,87.5878627,175.17,175.12,17.5878627]
[1730139862997,70.0,175.17,175.13,17.5878627]
[1730139863203,70.0,175.19,175.15,17.5878627]
[1730139863591,70.0,175.19,175.14,17.5878627]
[1730139863990,70.0,175.19,175.15,17.5878627]
[1730139864504,70.0,175.19,175.16,37.5694627]
[1730139864829,70.0,175.19,175.16,19.9816]
[1730139865599,70.0,175.19,175.16,14.2726]
[1730139865915,70.0,175.19,175.1,28.5551]
[1730139865916,70.0,175.17,175.13,14.2749]
[1730139866086,87.5878627,175.17,175.13,14.2749]
[1730139867110,70.0,175.17,175.13,31.8627627]
[1730139868110,70.0,175.17,175.14,17.5878627]
[1730139868606,70.0,175.17,175.15,17.5878627]
[1730139869179,70.0,175.17,175.16,17.5878627]
[1730139869386,70.0,175.17,175.15,17.5878627]
[1730139870110,70.0,175.17,175.15,23.2970627]
[1730139870490,70.0,175.17,175.15,5.7092]
[1730139870902,70.0,175.17,175.14,17.5878627]
[1730139871105,70.0,175.17,175.13,30.2455]
[1730139871106,70.0,175.17,175.13,53.5430627]
[1730139871607,70.0,175.15,175.13,14.2749]
[1730139871811,70.0,175.15,175.11,5.7106]
[1730139872608,70.0,175.15,175.11,23.2984627]
[1730139872806,70.0,175.15,175.01,29.1512262]
[1730139872807,87.5878627,175.12,175.05,15.3403]
[1730139873007,87.5878627,175.1,175.05,21.0528]
[1730139873218,70.0,175.1,175.06,17.5878627]
[1730139873382,70.0,175.1,175.08,17.5878627]
[1730139873914,70.0,175.1,175.07,17.5878627]
[1730139874405,70.0,175.1,175.08,37.5785627]
[1730139874588,70.0,175.1,175.08,19.9907]
[1730139875210,70.0,175.13,175.08,37.5785627]
[1730139875401,70.0,175.13,175.09,17.5878627]
[1730139875792,87.5878627,175.13,175.08,37.5785627]
[1730139876590,70.0,175.1,175.07,17.5878627]
[1730139876795,70.0,175.1,175.05,15.3403]
[1730139876796,70.0,175.1,175.06,23.3001627]
[1730139877190,70.0,175.1,175.06,5.7123]
[1730139878306,87.5878627,175.1,175.06,5.7123]
[1730139878713,70.0,175.13,175.09,17.5878627]
[1730139879508,70.0,175.15,175.11,17.5878627]
[1730139879689,70.0,175.15,175.12,17.5878627]
[1730139880297,70.0,175.17,175.12,37.5740627]
[1730139880622,70.0,175.19,175.15,17.5878627]
[1730139881192,87.5878627,175.19,175.14,17.5878627]
[1730139881640,17.5878627,175.18,175.13,17.5878627]
[1730139881799,17.5878627,175.18,175.12,37.5740627]
[1730139882600,70.0,175.14,175.09,43.33185361]
[1730139882805,28.19679797,175.13,175.09,20.84625564]
[1730139883614,70.0,175.12,175.09,15.13505564]
[1730139884700,5.7099,175.14,175.09,15.13505564]
[1730139884701,98.19679797,175.14,175.09,49.04315361]
[1730139885219,28.19679797,175.13,175.09,20.84635564]
[1730139886410,70.0,175.12,175.09,20.84635564]
[1730139886620,70.0,175.12,175.09,15.13505564]
[1730139886621,98.19679797,175.12,175.09,15.13505564]
[1730139887707,28.19679797,175.11,175.09,0.85695564]
[1730139887915,28.19679797,175.1,175.09,0.85695564]
[1730139888726,103.90779797,175.1,175.09,0.85695564]
[1730139889021,70.0,175.08,175.05,14.281]
[1730139889320,98.19679797,175.08,175.05,14.281]
[1730139889507,28.19679797,175.06,175.02,19.9974]
[1730139889820,28.19679797,175.07,175.02,19.9974]
[1730139890501,28.19679797,175.07,175.02,48.19419797]
[1730139890995,98.19679797,175.08,175.02,48.19419797]
[1730139893200,70.0,175.1,175.06,28.19679797]
[1730139893600,70.0,175.1,175.05,28.19679797]
[1730139894614,98.19679797,175.1,175.06,5.7123]
[1730139894998,28.19679797,175.09,175.05,19.9939]
[1730139895219,103.90779797,175.1,175.05,19.9939]
[1730139895416,75.711,175.1,175.05,14.2814]
[1730139895624,98.19679797,175.08,175.03,33.90999797]
[1730139895822,28.19679797,175.07,175.03,5.7132]
[1730139896206,98.19679797,175.08,175.03,5.7132]
[1730139897123,98.19679797,175.08,175.03,19.9964]
[1730139897501,70.0,175.08,175.03,48.19319797]
[1730139897722,70.0,175.08,175.04,28.19679797]
[1730139898702,70.0,175.08,175.05,5.7126]
[1730139900924,70.0,175.08,175.05,48.19099797]
[1730139901321,70.0,175.08,175.05,19.9942]
[1730139902606,70.0,175.08,175.03,46.2076346]
[1730139903326,70.0,175.08,175.04,17.6411346]
[1730139904728,70.0,175.11,175.07,17.6411346]
[1730139904926,87.6411346,175.13,175.07,17.6411346]
[1730139905231,70.0,175.15,175.11,17.6411346]
[1730139905401,70.0,175.17,175.12,17.6411346]
[1730139905827,87.6411346,175.17,175.12,17.6411346]
[1730139906006,87.6411346,175.17,175.1,17.6411346]
[1730139906007,87.6411346,175.15,175.1,17.6411346]
[1730139906208,70.0,175.11,175.07,17.6411346]
[1730139906427,70.0,175.11,175.06,23.8051346]
[1730139906719,70.0,175.11,175.07,37.6331346]
[1730139907116,70.0,175.13,175.08,17.6411346]
[1730139907522,70.0,175.13,175.09,17.6411346]
[1730139908413,70.0,175.13,175.09,23.3523346]
[1730139908606,87.6411346,175.13,175.09,14.2783]
[1730139908810,87.6411346,175.13,175.08,17.6411346]
[1730139909025,93.3513346,175.13,175.08,17.6411346]
[1730139909402,17.6411346,175.12,175.07,37.6331346]
[1730139909615,17.6411346,175.11,175.07,19.992]
[1730139911415,17.6411346,175.11,175.07,14.28]
[1730139912340,17.6411346,175.12,175.07,19.992]
[1730139912709,17.6411346,175.1,175.07,19.992]
[1730139914035,70.0,175.07,175.05,0.85715606]
[1730139914220,87.6411346,175.07,175.05,0.85715606]
[1730139914530,70.0,175.07,175.05,0.85715606]
[1730139918443,87.6411346,175.09,175.05,0.85715606]
[1730139918632,70.0,175.09,175.05,38.49249066]
[1730139918835,70.0,175.11,175.08,17.6411346]
[1730139919641,70.0,175.11,175.1,17.6411346]
[1730139919852,75.7101,175.13,175.1,17.6411346]
[1730139921124,70.0,175.13,175.1,17.6411346]
[1730139921441,70.0,175.13,175.12,17.6411346]
[1730139921663,70.0,175.13,175.11,17.6411346]
[1730139921842,70.0,175.15,175.12,17.6411346]
[1730139922049,75.7084,175.18,175.14,17.6411346]
[1730139922248,70.0,175.16,175.14,17.6411346]
[1730139922751,75.7084,175.18,175.14,17.6411346]
[1730139922947,70.0,175.18,175.14,23.3507346]
[1730139923417,70.0,175.18,175.15,17.6411346]
[1730139923746,70.0,175.2,175.16,17.6411346]
[1730139924616,75.7078,175.2,175.16,17.6411346]
[1730139924821,93.3489346,175.2,175.15,17.6411346]
[1730139925045,70.0,175.16,175.12,17.6411346]
[1730139925234,70.0,175.16,175.12,5.7103]
[1730139926950,70.0,175.14,175.11,14.2766]
[1730139927331,70.0,175.11,175.07,14.2793]
[1730139927534,70.0,175.11,175.07,31.9204346]
[1730139927837,70.0,175.11,175.07,14.2793]
[1730139928252,70.0,175.11,175.07,19.9912]
[1730139928749,70.0,175.11,175.07,37.6323346]
[1730139932649,70.0,175.09,175.05,18.49829359]
[1730139932856,70.0,175.09,175.05,0.85715899]
[1730139933068,70.0,175.09,175.05,18.49829359]
[1730139933350,70.0,175.07,175.05,0.85715899]
[1730139935040,70.0,175.07,175.04,14.2822]
[1730139935256,75.712,175.07,175.02,23.3546346]
[1730139935430,70.0,175.05,175.01,14.8677262]
[1730139935633,70.0,175.03,175.01,0.5831262]
[1730139936047,70.0,175.05,175.02,17.6411346]
[1730139936253,75.7121,175.07,175.04,17.6411346]
[1730139937433,70.0,175.07,175.04,17.6411346]
[1730139938352,70.0,175.07,175.04,23.3540346]
[1730139938964,70.0,175.09,175.06,17.6411346]
[1730139939137,70.0,175.11,175.08,17.6411346]
[1730139939561,70.0,175.11,175.07,17.6411346]
[1730139940033,75.7107,175.11,175.07,17.6411346]
[1730139940453,75.7107,175.11,175.07,23.3530346]
[1730139940640,75.7107,175.11,175.07,5.7119]
[1730139940944,75.7107,175.11,175.07,23.3530346]
[1730139941148,70.0,175.11,175.07,23.3530346]
[1730139941351,70.0,175.11,175.07,37.6330346]
[1730139942144,70.0,175.11,175.07,19.9919]
[1730139942541,70.0,175.13,175.1,17.6411346]
[1730139942762,70.0,175.13,175.12,17.6411346]
[1730139942962,70.0,175.13,175.1,17.6411346]
[1730139943861,70.0,175.13,175.11,17.6411346]
[1730139946267,70.0,175.13,175.12,17.6411346]
[1730139947377,70.0,175.17,175.12,17.6411346]
[1730139947546,70.0,175.17,175.15,17.6411346]
[1730139947742,70.0,175.19,175.16,17.6411346]
[1730139947952,70.0,175.19,175.17,17.6411346]
[1730139948266,75.7074,175.21,175.17,17.6411346]
[1730139948476,70.0,175.21,175.18,17.6411346]
[1730139948675,70.0,175.23,175.2,17.6411346]
[1730139949246,70.0,175.23,175.21,17.6411346]
[1730139949449,75.7061,175.25,175.22,17.6411346]
[1730139949747,70.0,175.25,175.23,17.6411346]
[1730139950575,70.0,175.22,175.2,17.6411346]
[1730139951364,70.0,175.22,175.21,17.6411346]
[1730139955273,70.0,175.24,175.21,23.3485346]
[1730139955472,70.0,175.24,175.23,17.6411346]
[1730139956063,70.0,175.26,175.23,17.6411346]
[1730139956376,70.0,175.26,175.24,17.6411346]
[1730139956961,70.0,175.31,175.25,17.6411346]
[1730139957162,75.7042,175.31,175.28,17.6411346]
[1730139957364,95.25,175.33,175.29,17.6411346]
[1730139957583,95.25,175.33,175.3,17.6411346]
[1730139958259,95.25,175.33,175.31,17.6411346]
[1730139958780,25.25,175.33,175.31,17.6411346]
[1730139958985,25.25,175.33,175.32,17.6411346]
[1730139959357,30.9536,175.33,175.3,17.6411346]
[1730139959681,30.9536,175.33,175.29,17.6411346]
[1730139959980,30.9536,175.33,175.27,5.7053]
[1730139960160,30.9536,175.33,175.29,17.6411346]
[1730139960863,30.9536,175.33,175.3,17.6411346]
[1730139961555,30.9536,175.33,175.32,17.6411346]
[1730139961556,25.25,175.33,175.32,17.6411346]
[1730139961955,25.25,175.33,175.31,17.6411346]
[1730139965060,25.25,175.33,175.32,17.6411346]
[1730139965886,15.6506,175.4,175.32,17.6411346]
[1730139965887,70.0,175.4,175.32,35.2822692]
[1730139966180,70.0,175.43,175.39,17.6411346]
[1730139966390,75.6996,175.45,175.41,17.6411346]
[1730139966955,70.0,175.43,175.4,17.6411346]
[1730139967174,70.0,175.43,175.39,17.6411346]
[1730139967679,87.6411346,175.4,175.33,15.11389963]
[1730139967880,17.6411346,175.37,175.31,17.6411346]
[1730139968084,87.6411346,175.38,175.32,17.6411346]
[1730139968466,87.6411346,175.36,175.3,31.9023346]
[1730139968665,70.0,175.36,175.31,18.49696086]
[1730139968873,75.7027,175.36,175.31,18.49696086]
[1730139970784,103.83866172,175.36,175.31,28.99178798]
[1730139970964,75.7027,175.36,175.31,28.99178798]
[1730139972182,75.7027,175.36,175.32,28.13596172]
[1730139972977,70.0,175.36,175.33,28.13596172]
[1730139973179,70.0,175.36,175.32,48.09916172]
[1730139973376,70.0,175.36,175.32,42.39556172]
[1730139973559,75.7026,175.36,175.32,42.39556172]
[1730139976789,28.13596172,175.37,175.32,42.39556172]
[1730139976790,5.7022,175.37,175.33,28.13596172]
[1730139976989,70.0,175.36,175.32,48.09936172]
[1730139977391,5.7022,175.37,175.32,48.09936172]
[1730139977684,70.0,175.4,175.36,28.13596172]
[1730139978001,75.7006,175.42,175.37,28.13596172]
[1730139978789,70.0,175.42,175.39,28.13596172]
[1730139979473,70.0,175.42,175.39,33.83736172]
[1730139980083,75.6999,175.44,175.39,33.83736172]
[1730139980471,75.6999,175.44,175.4,28.13596172]
[1730139981277,25.25,175.41,175.4,28.13596172]
[1730139981475,75.6999,175.44,175.4,28.13596172]
[1730139981785,75.6995,175.46,175.41,28.13596172]
[1730139981996,70.0,175.46,175.42,28.13596172]
[1730139982379,25.25,175.43,175.42,28.13596172]
[1730139982891,75.6994,175.46,175.42,28.13596172]
[1730139983597,103.83536172,175.46,175.4,28.13596172]
[1730139983782,70.0,175.43,175.39,42.38916172]
[1730139983983,98.13596172,175.43,175.39,14.2532]
[1730139984582,70.0,175.43,175.39,14.2532]
[1730139985188,98.13596172,175.41,175.36,28.99156912]
[1730139985898,70.0,175.41,175.37,28.13596172]
[1730139986406,53.38596172,175.42,175.39,28.13596172]
[1730139986407,25.25,175.42,175.39,28.13596172]
[1730139986573,25.25,175.42,175.4,28.13596172]
[1730139987281,127.61254572,175.45,175.4,33.83706172]
[1730139987478,70.0,175.45,175.42,28.13596172]
[1730139987795,70.0,175.45,175.4,48.09016172]
[1730139988001,70.0,175.45,175.41,28.13596172]
[1730139988879,70.0,175.47,175.44,28.13596172]
[1730139989197,70.0,175.47,175.45,28.13596172]
[1730139989382,70.0,175.47,175.45,33.83546172]
[1730139989582,70.0,175.47,175.44,42.38566172]
[1730139989782,70.0,175.47,175.43,28.13596172]
[1730139990371,70.0,175.43,175.39,28.13596172]
[1730139990577,98.13596172,175.43,175.38,34.69329685]
[1730139990891,70.0,175.43,175.38,48.94769685]
[1730139991381,75.7003,175.43,175.38,48.94769685]
[1730139991698,103.83626172,175.43,175.38,48.94769685]
[1730139992598,93.27263901,175.43,175.38,38.38407414]
[1730139992987,75.7003,175.43,175.38,38.38407414]
[1730139993698,87.57233901,175.45,175.4,17.57233901]
[1730139994272,70.0,175.45,175.4,17.57233901]
[1730139994986,70.0,175.45,175.41,17.57233901]
[1730139995502,87.57233901,175.45,175.4,23.27333901]
[1730139996278,93.27203901,175.45,175.4,23.27333901]
[1730139997499,93.27203901,175.45,175.39,37.52773901]
[1730139998179,75.6997,175.45,175.4,17.57233901]
[1730139998481,75.6997,175.45,175.41,5.7009]
[1730139998679,93.27203901,175.45,175.41,5.7009]
[1730139999888,93.27203901,175.45,175.4,5.7012]
[1730140002291,70.0,175.45,175.4,37.52663901]
[1730140004401,87.57233901,175.45,175.4,37.52663901]
[1730140005507,87.57233901,175.45,175.4,19.9543]
[1730140005901,17.57233901,175.41,175.37,14.2554]
[1730140006207,17.57233901,175.38,175.35,22.3571]
[1730140006384,17.57233901,175.38,175.35,5.7028]
[1730140006799,17.57233901,175.39,175.35,5.7028]
[1730140006997,23.27353901,175.4,175.35,5.7028]
[1730140007491,17.57233901,175.39,175.35,5.7028]
[1730140008197,23.27393901,175.39,175.34,19.9611]
[1730140008394,17.57233901,175.39,175.34,37.53343901]
[1730140009307,17.57233901,175.4,175.34,37.53343901]
[1730140010110,87.57233901,175.43,175.37,17.57233901]
[1730140010310,87.57233901,175.43,175.38,23.27423901]
[1730140010683,93.27263901,175.43,175.38,37.52893901]
[1730140010886,93.27263901,175.43,175.38,19.9566]
[1730140011381,17.57233901,175.42,175.38,19.9566]
[1730140011584,17.57233901,175.42,175.38,14.2547]
[1730140015799,17.57233901,175.41,175.35,17.57233901]
[1730140016589,23.27293901,175.42,175.36,17.57233901]
[1730140016789,17.57233901,175.41,175.36,19.9588]
[1730140017913,17.57233901,175.42,175.36,37.53113901]
[1730140018214,17.57233901,175.43,175.37,17.57233901]
[1730140018392,17.57233901,175.44,175.39,17.57233901]
[1730140018596,93.27193901,175.45,175.39,17.57233901]
[1730140019713,17.57233901,175.44,175.39,17.57233901]
[1730140019914,23.27243901,175.44,175.39,23.27373901]
[1730140020215,87.57233901,175.45,175.39,23.27373901]
[1730140020410,17.57233901,175.43,175.39,19.9553]
[1730140021216,23.27173901,175.46,175.41,17.57233901]
[1730140021725,17.57233901,175.46,175.41,23.27293901]
[1730140021916,23.27173901,175.46,175.41,23.27293901]
[1730140022297,87.57233901,175.47,175.42,17.57233901]
[1730140022617,93.27143901,175.47,175.42,17.57233901]
[1730140022830,93.27143901,175.47,175.41,37.52523901]
[1730140022989,17.57233901,175.43,175.4,5.7011]
[1730140023608,17.57233901,175.43,175.39,5.7015]
[1730140023805,17.57233901,175.44,175.39,37.52773901]
[1730140024017,93.27193901,175.45,175.39,37.52773901]
[1730140024312,93.27193901,175.45,175.4,17.57233901]
[1730140024812,75.6996,175.45,175.4,17.57233901]
[1730140025193,93.27193901,175.45,175.4,17.57233901]
[1730140026311,17.57233901,175.44,175.39,31.82623901]
[1730140026515,17.57233901,175.44,175.39,37.52773901]
[1730140026901,17.57233901,175.44,175.39,19.9554]
[1730140027416,17.57233901,175.44,175.39,37.52773901]
[1730140028515,17.57233901,175.44,175.39,19.9554]
[1730140028719,23.27273901,175.43,175.39,14.2539]
[1730140028922,17.57233901,175.4,175.38,0.85552534]
[1730140029502,17.57233901,175.41,175.38,0.85552534]
[1730140031792,17.57233901,175.4,175.38,0.85552534]
[1730140031994,87.57233901,175.39,175.33,30.178]
[1730140032227,17.57233901,175.35,175.3,37.92643901]
[1730140032512,17.57233901,175.35,175.31,5.7041]
[1730140032713,17.57233901,175.35,175.31,19.9645]
[1730140032912,17.57233901,175.34,175.31,14.2604]
[1730140033116,17.57233901,175.33,175.3,0.85593049]
[1730140033319,17.57233901,175.34,175.3,0.85593049]
[1730140033703,87.57233901,175.35,175.3,6.56033049]
[1730140034225,17.57233901,175.34,175.3,6.56033049]
[1730140034418,87.57233901,175.32,175.27,19.9685]
[1730140034619,17.57233901,175.31,175.27,19.9685]
[1730140035502,17.57233901,175.3,175.27,19.9685]
[1730140035727,17.57233901,175.3,175.27,14.2631]
[1730140036424,87.57233901,175.32,175.27,19.9685]
[1730140036610,17.57233901,175.31,175.27,19.9685]
[1730140036810,17.57233901,175.31,175.27,14.2631]
[1730140037398,17.57233901,175.3,175.27,14.2631]